[Event "Titled Tuesday Blitz March 28 Early 2023"]
[White "Samant Aditya S"]
[Black "Duda, Jan-Krzysztof"]
[WhiteFideId "35080580"]
[BlackFideId "1170546"]
[WhiteElo "2362"]
[BlackElo "2790"]
[Result "0-1"]
[Round "03"]
[TimeControl "180+2"]
[Date "2023.03.28"]
[WhiteClock "0:00:02"]
[BlackClock "0:01:24"]

1. Nf3 {[%clk 0:03:00]}  g6 {[%clk 0:02:59]} 2. e4 {[%clk 0:02:58]}  Bg7 {[%clk 0:02:59]} 3. Nc3 {[%clk 0:02:58]}  c5 {[%clk 0:02:58]} 4. Bc4 {[%clk 0:02:54]}  Nc6 {[%clk 0:02:56]} 5. O-O {[%clk 0:02:53]}  e6 {[%clk 0:02:54]} 6. Re1 {[%clk 0:02:50]}  d6 {[%clk 0:02:49]} 7. d3 {[%clk 0:02:46]}  a6 {[%clk 0:02:49]} 8. a3 {[%clk 0:02:39]}  Nge7 {[%clk 0:02:49]} 9. Bg5 {[%clk 0:02:29]}  h6 {[%clk 0:02:49]} 10. Be3 {[%clk 0:02:21]}  b5 {[%clk 0:02:48]} 11. Ba2 {[%clk 0:02:20]}  Nd4 {[%clk 0:02:47]} 12. Bxd4 {[%clk 0:02:15]}  cxd4 {[%clk 0:02:48]} 13. Ne2 {[%clk 0:02:16]}  Qb6 {[%clk 0:02:48]} 14. Bb3 {[%clk 0:01:58]}  Bd7 {[%clk 0:02:46]} 15. a4 {[%clk 0:01:57]}  O-O {[%clk 0:02:47]} 16. axb5 {[%clk 0:01:42]}  axb5 {[%clk 0:02:48]} 17. Qd2 {[%clk 0:01:43]}  Nc6 {[%clk 0:02:46]} 18. Ng3 {[%clk 0:01:21]}  Na5 {[%clk 0:02:44]} 19. Ba2 {[%clk 0:01:20]}  b4 {[%clk 0:02:36]} 20. e5 {[%clk 0:00:20]}  b3 {[%clk 0:02:23]} 21. Bxb3 {[%clk 0:00:20]}  Nxb3 {[%clk 0:02:23]} 22. cxb3 {[%clk 0:00:21]}  Rxa1 {[%clk 0:02:22]} 23. Rxa1 {[%clk 0:00:22]}  dxe5 {[%clk 0:02:23]} 24. b4 {[%clk 0:00:22]}  Bc6 {[%clk 0:02:18]} 25. Ne4 {[%clk 0:00:20]}  Rb8 {[%clk 0:02:15]} 26. h4 {[%clk 0:00:03]}  Qxb4 {[%clk 0:02:10]} 27. Qxb4 {[%clk 0:00:01]}  Rxb4 {[%clk 0:02:11]} 28. Rc1 {[%clk 0:00:02]}  Bb7 {[%clk 0:02:00]} 29. Rc7 {[%clk 0:00:01]}  Rb6 {[%clk 0:01:33]} 30. Rd7 {[%clk 0:00:01]}  Bxe4 {[%clk 0:01:26]} 31. dxe4 {[%clk 0:00:02]}  f5 {[%clk 0:01:24]} 0-1


[Site "https://www.chess.com"]

[Event "Titled Tuesday Blitz March 28 Early 2023"]
[White "Martinez Alcantara, Jose Eduardo"]
[Black "Rendle, Thomas E"]
[WhiteFideId "3805662"]
[BlackFideId "408760"]
[WhiteElo "2712"]
[BlackElo "2428"]
[Result "1-0"]
[Round "03"]
[TimeControl "180+2"]
[Date "2023.03.28"]
[WhiteClock "0:01:11"]
[BlackClock "0:00:46"]

1. e4 {[%clk 0:03:00]}  e6 {[%clk 0:02:59]} 2. d4 {[%clk 0:03:00]}  d5 {[%clk 0:02:59]} 3. Nd2 {[%clk 0:03:00]}  a6 {[%clk 0:02:57]} 4. c3 {[%clk 0:02:59]}  c5 {[%clk 0:02:56]} 5. Ngf3 {[%clk 0:02:59]}  Nf6 {[%clk 0:02:56]} 6. e5 {[%clk 0:02:58]}  Nfd7 {[%clk 0:02:56]} 7. Bd3 {[%clk 0:02:59]}  Nc6 {[%clk 0:02:56]} 8. O-O {[%clk 0:02:59]}  g5 {[%clk 0:02:56]} 9. Qe2 {[%clk 0:02:50]}  h5 {[%clk 0:02:48]} 10. dxc5 {[%clk 0:02:46]}  g4 {[%clk 0:02:48]} 11. Nd4 {[%clk 0:02:46]}  Ncxe5 {[%clk 0:02:40]} 12. b4 {[%clk 0:02:44]}  Bg7 {[%clk 0:02:34]} 13. f4 {[%clk 0:02:31]}  gxf3 {[%clk 0:02:14]} 14. N2xf3 {[%clk 0:02:30]}  Nxf3+ {[%clk 0:02:09]} 15. Qxf3 {[%clk 0:02:27]}  Ne5 {[%clk 0:02:09]} 16. Qg3 {[%clk 0:02:21]}  Kf8 {[%clk 0:01:42]} 17. Bg5 {[%clk 0:02:18]}  Qc7 {[%clk 0:01:25]} 18. Rae1 {[%clk 0:02:10]}  h4 {[%clk 0:01:17]} 19. Qf4 {[%clk 0:01:25]}  b6 {[%clk 0:01:17]} 20. cxb6 {[%clk 0:01:15]}  Qxb6 {[%clk 0:00:49]} 21. Rxe5 {[%clk 0:01:13]}  Ra7 {[%clk 0:00:50]} 22. Bf6 {[%clk 0:01:12]}  Bh6 {[%clk 0:00:46]} 23. Rh5 {[%clk 0:01:11]} 1-0


[Site "https://www.chess.com"]

[Event "Titled Tuesday Blitz March 28 Early 2023"]
[White "Araujo Sanchez, Josue"]
[Black "Van Foreest, Lucas"]
[WhiteFideId "6416896"]
[BlackFideId "1039792"]
[WhiteElo "2416"]
[BlackElo "2519"]
[Result "1-0"]
[Round "03"]
[TimeControl "180+2"]
[Date "2023.03.28"]
[WhiteClock "0:01:21"]
[BlackClock "0:01:14"]

1. c4 {[%clk 0:03:00]}  g5 {[%clk 0:02:59]} 2. Nc3 {[%clk 0:03:00]}  Bg7 {[%clk 0:02:59]} 3. g3 {[%clk 0:02:55]}  d6 {[%clk 0:02:58]} 4. Bg2 {[%clk 0:02:41]}  Nc6 {[%clk 0:02:58]} 5. d3 {[%clk 0:02:37]}  g4 {[%clk 0:02:59]} 6. h3 {[%clk 0:02:33]}  h5 {[%clk 0:02:59]} 7. hxg4 {[%clk 0:02:33]}  hxg4 {[%clk 0:03:00]} 8. Rxh8 {[%clk 0:02:33]}  Bxh8 {[%clk 0:03:01]} 9. e4 {[%clk 0:02:31]}  Nd4 {[%clk 0:02:57]} 10. Nge2 {[%clk 0:02:31]}  c5 {[%clk 0:02:58]} 11. Be3 {[%clk 0:02:30]}  e5 {[%clk 0:02:57]} 12. Nd5 {[%clk 0:02:29]}  Ne7 {[%clk 0:02:50]} 13. Bg5 {[%clk 0:02:26]}  Ndc6 {[%clk 0:02:40]} 14. Nec3 {[%clk 0:02:16]}  Be6 {[%clk 0:02:39]} 15. Qb3 {[%clk 0:02:15]}  Qd7 {[%clk 0:02:33]} 16. Nb5 {[%clk 0:02:12]}  Bxd5 {[%clk 0:02:19]} 17. cxd5 {[%clk 0:02:10]}  Nd4 {[%clk 0:02:18]} 18. Nxd4 {[%clk 0:02:09]}  exd4 {[%clk 0:02:13]} 19. O-O-O {[%clk 0:02:04]}  Ng6 {[%clk 0:02:07]} 20. Rh1 {[%clk 0:01:57]}  Bg7 {[%clk 0:02:06]} 21. Bf1 {[%clk 0:01:51]}  b5 {[%clk 0:02:05]} 22. Kb1 {[%clk 0:01:50]}  Rc8 {[%clk 0:02:03]} 23. Be2 {[%clk 0:01:46]}  Kf8 {[%clk 0:02:02]} 24. Qd1 {[%clk 0:01:43]}  Ne5 {[%clk 0:02:02]} 25. Bf4 {[%clk 0:01:42]}  Rb8 {[%clk 0:01:48]} 26. Bxe5 {[%clk 0:01:41]}  Bxe5 {[%clk 0:01:49]} 27. Bxg4 {[%clk 0:01:41]}  Qe7 {[%clk 0:01:48]} 28. f4 {[%clk 0:01:42]}  Bg7 {[%clk 0:01:48]} 29. Bf5 {[%clk 0:01:37]}  c4 {[%clk 0:01:48]} 30. Rh7 {[%clk 0:01:34]}  c3 {[%clk 0:01:40]} 31. Qh5 {[%clk 0:01:31]}  Qf6 {[%clk 0:01:35]} 32. g4 {[%clk 0:01:30]}  Re8 {[%clk 0:01:13]} 33. g5 {[%clk 0:01:20]}  Qxf5 {[%clk 0:01:13]} 34. exf5 {[%clk 0:01:21]}  Re1+ {[%clk 0:01:13]} 35. Kc2 {[%clk 0:01:21]}  Re2+ {[%clk 0:01:14]} 36. Qxe2 {[%clk 0:01:21]} 1-0


[Site "https://www.chess.com"]

[Event "Titled Tuesday Blitz March 28 Early 2023"]
[White "Staudenhocker43"]
[Black "Flores, Diego"]
[BlackFideId "108049"]
[WhiteElo "2557"]
[BlackElo "2606"]
[Result "0-1"]
[Round "03"]
[TimeControl "180+2"]
[Date "2023.03.28"]
[WhiteClock "0:00:32"]
[BlackClock "0:00:18"]

1. d4 {[%clk 0:03:00]}  Nf6 {[%clk 0:02:58]} 2. c4 {[%clk 0:03:01]}  c5 {[%clk 0:02:58]} 3. d5 {[%clk 0:02:59]}  e6 {[%clk 0:02:59]} 4. Nc3 {[%clk 0:02:59]}  exd5 {[%clk 0:02:59]} 5. cxd5 {[%clk 0:03:00]}  d6 {[%clk 0:03:00]} 6. e4 {[%clk 0:03:00]}  g6 {[%clk 0:03:01]} 7. Nf3 {[%clk 0:03:00]}  Bg7 {[%clk 0:03:00]} 8. Nd2 {[%clk 0:03:00]}  O-O {[%clk 0:02:59]} 9. Be2 {[%clk 0:03:00]}  Re8 {[%clk 0:02:55]} 10. O-O {[%clk 0:03:00]}  a6 {[%clk 0:02:55]} 11. a4 {[%clk 0:02:59]}  Nbd7 {[%clk 0:02:56]} 12. f3 {[%clk 0:02:57]}  Ne5 {[%clk 0:02:31]} 13. Qc2 {[%clk 0:02:55]}  Nh5 {[%clk 0:02:16]} 14. f4 {[%clk 0:02:54]}  Ng4 {[%clk 0:02:13]} 15. Bxg4 {[%clk 0:02:44]}  Bd4+ {[%clk 0:02:06]} 16. Kh1 {[%clk 0:02:44]}  Bxg4 {[%clk 0:02:06]} 17. Nf3 {[%clk 0:02:32]}  Bxf3 {[%clk 0:02:01]} 18. Rxf3 {[%clk 0:02:33]}  Nf6 {[%clk 0:02:01]} 19. Bd2 {[%clk 0:02:30]}  Bxc3 {[%clk 0:01:59]} 20. Bxc3 {[%clk 0:02:30]}  Nxe4 {[%clk 0:02:00]} 21. Be1 {[%clk 0:02:30]}  f5 {[%clk 0:01:59]} 22. Re3 {[%clk 0:02:28]}  Qf6 {[%clk 0:01:59]} 23. Raa3 {[%clk 0:02:23]}  b5 {[%clk 0:01:56]} 24. axb5 {[%clk 0:02:16]}  axb5 {[%clk 0:01:56]} 25. h3 {[%clk 0:02:13]}  b4 {[%clk 0:01:45]} 26. Rxa8 {[%clk 0:02:13]}  Rxa8 {[%clk 0:01:46]} 27. Kh2 {[%clk 0:02:12]}  h5 {[%clk 0:01:42]} 28. Re2 {[%clk 0:02:05]}  Ra1 {[%clk 0:01:31]} 29. b3 {[%clk 0:01:52]}  Qd4 {[%clk 0:01:28]} 30. g4 {[%clk 0:01:30]}  hxg4 {[%clk 0:01:16]} 31. hxg4 {[%clk 0:01:30]}  Nf6 {[%clk 0:00:51]} 32. gxf5 {[%clk 0:01:26]}  Qxf4+ {[%clk 0:00:48]} 33. Kg2 {[%clk 0:01:09]}  Qg4+ {[%clk 0:00:47]} 34. Bg3 {[%clk 0:01:07]}  Nh5 {[%clk 0:00:38]} 35. Re8+ {[%clk 0:00:54]}  Kf7 {[%clk 0:00:34]} 36. Re3 {[%clk 0:00:51]}  Nf4+ {[%clk 0:00:32]} 37. Kf2 {[%clk 0:00:51]}  Nh3+ {[%clk 0:00:33]} 38. Kg2 {[%clk 0:00:51]}  gxf5 {[%clk 0:00:18]} 39. Qe2 {[%clk 0:00:32]}  Nf4+ {[%clk 0:00:18]} 0-1


[Site "https://www.chess.com"]

[Event "Titled Tuesday Blitz March 28 Early 2023"]
[White "Wagner, Dennis"]
[Black "Mostbauer, Florian"]
[WhiteFideId "24650684"]
[BlackFideId "1626671"]
[WhiteElo "2470"]
[BlackElo "2234"]
[Result "1-0"]
[Round "03"]
[TimeControl "180+2"]
[Date "2023.03.28"]
[WhiteClock "0:02:13"]
[BlackClock "0:02:23"]

1. d4 {[%clk 0:03:00]}  d5 {[%clk 0:02:59]} 2. c4 {[%clk 0:03:01]}  c6 {[%clk 0:02:59]} 3. Nc3 {[%clk 0:02:59]}  Nf6 {[%clk 0:02:59]} 4. e3 {[%clk 0:02:59]}  a6 {[%clk 0:02:58]} 5. Nf3 {[%clk 0:02:57]}  Bg4 {[%clk 0:02:56]} 6. h3 {[%clk 0:02:47]}  Bxf3 {[%clk 0:02:55]} 7. Qxf3 {[%clk 0:02:48]}  e6 {[%clk 0:02:56]} 8. cxd5 {[%clk 0:02:47]}  cxd5 {[%clk 0:02:56]} 9. g4 {[%clk 0:02:46]}  Nc6 {[%clk 0:02:55]} 10. Bd2 {[%clk 0:02:45]}  Rc8 {[%clk 0:02:54]} 11. g5 {[%clk 0:02:44]}  Ng8 {[%clk 0:02:50]} 12. h4 {[%clk 0:02:44]}  Bd6 {[%clk 0:02:48]} 13. O-O-O {[%clk 0:02:34]}  h5 {[%clk 0:02:42]} 14. Kb1 {[%clk 0:02:32]}  Nge7 {[%clk 0:02:37]} 15. a3 {[%clk 0:02:16]}  g6 {[%clk 0:02:32]} 16. Bd3 {[%clk 0:02:15]}  O-O {[%clk 0:02:31]} 17. Rc1 {[%clk 0:02:15]}  Nf5 {[%clk 0:02:28]} 18. Bxf5 {[%clk 0:02:14]}  exf5 {[%clk 0:02:23]} 19. Nxd5 {[%clk 0:02:13]} 1-0


[Site "https://www.chess.com"]

[Event "Titled Tuesday Blitz March 28 Early 2023"]
[White "Krysa, Leandro"]
[Black "Lorenzo De La Riva, Lazaro"]
[WhiteFideId "116807"]
[BlackFideId "2268809"]
[WhiteElo "2485"]
[BlackElo "2294"]
[Result "1-0"]
[Round "03"]
[TimeControl "180+2"]
[Date "2023.03.28"]
[WhiteClock "0:01:08"]
[BlackClock "0:00:19"]

1. e4 {[%clk 0:03:00]}  c6 {[%clk 0:02:56]} 2. d4 {[%clk 0:03:00]}  d5 {[%clk 0:02:55]} 3. e5 {[%clk 0:03:00]}  c5 {[%clk 0:02:55]} 4. dxc5 {[%clk 0:03:00]}  e6 {[%clk 0:02:54]} 5. Bd3 {[%clk 0:02:56]}  Nd7 {[%clk 0:02:48]} 6. Nf3 {[%clk 0:02:52]}  Nxc5 {[%clk 0:02:47]} 7. O-O {[%clk 0:02:53]}  Ne7 {[%clk 0:02:44]} 8. Re1 {[%clk 0:02:50]}  Ng6 {[%clk 0:02:42]} 9. Nbd2 {[%clk 0:02:32]}  Nxd3 {[%clk 0:02:41]} 10. cxd3 {[%clk 0:02:33]}  Bd7 {[%clk 0:02:41]} 11. g3 {[%clk 0:02:30]}  a5 {[%clk 0:02:20]} 12. h4 {[%clk 0:02:27]}  h6 {[%clk 0:02:15]} 13. h5 {[%clk 0:02:26]}  Ne7 {[%clk 0:02:14]} 14. Nd4 {[%clk 0:02:22]}  Nc6 {[%clk 0:02:12]} 15. N2f3 {[%clk 0:02:21]}  Nxd4 {[%clk 0:02:11]} 16. Nxd4 {[%clk 0:02:21]}  a4 {[%clk 0:02:04]} 17. Qg4 {[%clk 0:02:16]}  Qb6 {[%clk 0:01:26]} 18. Be3 {[%clk 0:02:14]}  Qa6 {[%clk 0:01:26]} 19. Rac1 {[%clk 0:01:59]}  Qxd3 {[%clk 0:01:11]} 20. Rc7 {[%clk 0:01:58]}  Rb8 {[%clk 0:00:52]} 21. Rec1 {[%clk 0:01:28]}  Qe4 {[%clk 0:00:52]} 22. Qd1 {[%clk 0:01:24]}  Be7 {[%clk 0:00:32]} 23. Rxd7 {[%clk 0:01:21]}  Kxd7 {[%clk 0:00:33]} 24. Qxa4+ {[%clk 0:01:21]}  Kd8 {[%clk 0:00:24]} 25. Qa7 {[%clk 0:01:17]}  Rc8 {[%clk 0:00:23]} 26. Qb6+ {[%clk 0:01:14]}  Kd7 {[%clk 0:00:20]} 27. Qxb7+ {[%clk 0:01:14]}  Ke8 {[%clk 0:00:18]} 28. Rxc8+ {[%clk 0:01:10]}  Bd8 {[%clk 0:00:19]} 29. Qc6+ {[%clk 0:01:08]}  Ke7 {[%clk 0:00:19]} 30. Qd6+ {[%clk 0:01:08]}  Ke8 {[%clk 0:00:19]} 31. Rxd8# {[%clk 0:01:08]} 1-0


[Site "https://www.chess.com"]

[Event "Titled Tuesday Blitz March 28 Early 2023"]
[White "Nakamura, Hikaru"]
[Black "Bitoon, Richard"]
[WhiteFideId "2016192"]
[BlackFideId "5201110"]
[WhiteElo "2879"]
[BlackElo "2374"]
[Result "1-0"]
[Round "03"]
[TimeControl "180+2"]
[Date "2023.03.28"]
[WhiteClock "0:01:39"]
[BlackClock "0:00:02"]

1. Nf3 {[%clk 0:03:00]}  Nf6 {[%clk 0:02:56]} 2. g3 {[%clk 0:03:00]}  g6 {[%clk 0:02:55]} 3. b3 {[%clk 0:02:58]}  Bg7 {[%clk 0:02:56]} 4. Bb2 {[%clk 0:02:58]}  O-O {[%clk 0:02:56]} 5. d4 {[%clk 0:02:59]}  d6 {[%clk 0:02:57]} 6. Bg2 {[%clk 0:02:59]}  Nc6 {[%clk 0:02:53]} 7. O-O {[%clk 0:02:59]}  a5 {[%clk 0:02:48]} 8. c4 {[%clk 0:02:58]}  a4 {[%clk 0:02:48]} 9. d5 {[%clk 0:02:57]}  Nb8 {[%clk 0:02:23]} 10. b4 {[%clk 0:02:51]}  Nbd7 {[%clk 0:01:35]} 11. a3 {[%clk 0:02:46]}  Nb6 {[%clk 0:01:33]} 12. Nbd2 {[%clk 0:02:46]}  e6 {[%clk 0:01:27]} 13. dxe6 {[%clk 0:02:42]}  Bxe6 {[%clk 0:01:26]} 14. Rc1 {[%clk 0:02:41]}  Nfd7 {[%clk 0:01:22]} 15. Bxg7 {[%clk 0:02:37]}  Kxg7 {[%clk 0:01:23]} 16. Nd4 {[%clk 0:02:34]}  Rb8 {[%clk 0:01:18]} 17. Nxe6+ {[%clk 0:02:23]}  fxe6 {[%clk 0:01:19]} 18. c5 {[%clk 0:02:23]}  Nd5 {[%clk 0:01:13]} 19. Qxa4 {[%clk 0:02:21]}  b5 {[%clk 0:01:01]} 20. cxb6 {[%clk 0:02:14]}  N7xb6 {[%clk 0:01:01]} 21. Qc2 {[%clk 0:02:12]}  Rf7 {[%clk 0:00:59]} 22. Nc4 {[%clk 0:02:01]}  Qg5 {[%clk 0:00:41]} 23. Nxb6 {[%clk 0:02:01]}  Nxb6 {[%clk 0:00:41]} 24. Qb3 {[%clk 0:01:57]}  Qb5 {[%clk 0:00:38]} 25. e3 {[%clk 0:01:53]}  d5 {[%clk 0:00:36]} 26. Rc5 {[%clk 0:01:50]}  Qe2 {[%clk 0:00:34]} 27. Qc3+ {[%clk 0:01:49]}  Kh6 {[%clk 0:00:31]} 28. Rxc7 {[%clk 0:01:46]}  Na4 {[%clk 0:00:20]} 29. Qe5 {[%clk 0:01:43]}  Rxc7 {[%clk 0:00:07]} 30. Qxc7 {[%clk 0:01:44]}  Rf8 {[%clk 0:00:07]} 31. Qe7 {[%clk 0:01:40]}  Rf5 {[%clk 0:00:05]} 32. Bh3 {[%clk 0:01:39]}  Rh5 {[%clk 0:00:02]} 33. Qf8+ {[%clk 0:01:38]}  Kg5 {[%clk 0:00:02]} 34. Qf4# {[%clk 0:01:39]} 1-0


[Site "https://www.chess.com"]

[Event "Titled Tuesday Blitz March 28 Early 2023"]
[White "Vidit, Santosh Gujrathi"]
[Black "Kozin, Yuri"]
[WhiteFideId "5029465"]
[BlackFideId "4129920"]
[WhiteElo "2651"]
[BlackElo "2524"]
[Result "1-0"]
[Round "03"]
[TimeControl "180+2"]
[Date "2023.03.28"]
[WhiteClock "0:01:44"]
[BlackClock "0:00:18"]

1. e4 {[%clk 0:03:00]}  c5 {[%clk 0:02:59]} 2. Nf3 {[%clk 0:03:01]}  e6 {[%clk 0:02:59]} 3. d4 {[%clk 0:03:01]}  cxd4 {[%clk 0:03:00]} 4. Nxd4 {[%clk 0:03:02]}  Nf6 {[%clk 0:03:01]} 5. Nc3 {[%clk 0:03:02]}  d6 {[%clk 0:03:01]} 6. Be3 {[%clk 0:02:59]}  a6 {[%clk 0:03:01]} 7. a4 {[%clk 0:02:53]}  Nc6 {[%clk 0:02:53]} 8. Be2 {[%clk 0:02:52]}  Be7 {[%clk 0:02:52]} 9. O-O {[%clk 0:02:53]}  O-O {[%clk 0:02:52]} 10. f4 {[%clk 0:02:53]}  Qc7 {[%clk 0:02:52]} 11. Kh1 {[%clk 0:02:53]}  Nxd4 {[%clk 0:02:52]} 12. Qxd4 {[%clk 0:02:52]}  e5 {[%clk 0:02:53]} 13. Qd2 {[%clk 0:02:52]}  exf4 {[%clk 0:02:53]} 14. Rxf4 {[%clk 0:02:42]}  Be6 {[%clk 0:02:53]} 15. a5 {[%clk 0:02:41]}  Nd7 {[%clk 0:02:40]} 16. Nd5 {[%clk 0:02:36]}  Bxd5 {[%clk 0:02:40]} 17. exd5 {[%clk 0:02:37]}  Bg5 {[%clk 0:02:34]} 18. Rc4 {[%clk 0:02:37]}  Bxe3 {[%clk 0:02:34]} 19. Rxc7 {[%clk 0:02:37]}  Bxd2 {[%clk 0:02:34]} 20. Rxd7 {[%clk 0:02:38]}  Rfe8 {[%clk 0:01:59]} 21. Bf1 {[%clk 0:02:36]}  Rac8 {[%clk 0:01:46]} 22. c3 {[%clk 0:02:34]}  Rb8 {[%clk 0:01:22]} 23. Rxd6 {[%clk 0:02:34]}  Bf4 {[%clk 0:01:14]} 24. Rd7 {[%clk 0:02:24]}  Red8 {[%clk 0:01:04]} 25. Rxd8+ {[%clk 0:02:24]}  Rxd8 {[%clk 0:01:05]} 26. Rd1 {[%clk 0:02:24]}  Kf8 {[%clk 0:00:58]} 27. g3 {[%clk 0:02:22]}  Be5 {[%clk 0:00:58]} 28. Bg2 {[%clk 0:02:18]}  Rd6 {[%clk 0:00:47]} 29. Rd3 {[%clk 0:02:00]}  Ke7 {[%clk 0:00:47]} 30. b4 {[%clk 0:01:59]}  h5 {[%clk 0:00:43]} 31. c4 {[%clk 0:01:59]}  b6 {[%clk 0:00:40]} 32. c5 {[%clk 0:01:58]}  bxc5 {[%clk 0:00:36]} 33. bxc5 {[%clk 0:01:59]}  Rf6 {[%clk 0:00:36]} 34. d6+ {[%clk 0:01:59]}  Kd8 {[%clk 0:00:34]} 35. Rb3 {[%clk 0:01:55]}  g5 {[%clk 0:00:22]} 36. Rb8+ {[%clk 0:01:53]}  Kd7 {[%clk 0:00:22]} 37. Rb7+ {[%clk 0:01:53]}  Ke6 {[%clk 0:00:20]} 38. Re7+ {[%clk 0:01:51]}  Kf5 {[%clk 0:00:20]} 39. Rxe5+ {[%clk 0:01:43]}  Kxe5 {[%clk 0:00:18]} 40. d7 {[%clk 0:01:44]} 1-0


[Site "https://www.chess.com"]

[Event "Titled Tuesday Blitz March 28 Early 2023"]
[White "Sjugirov, Sanan"]
[Black "Moral Garcia, Serafin"]
[WhiteFideId "4189302"]
[BlackFideId "2201925"]
[WhiteElo "2569"]
[BlackElo "2254"]
[Result "1-0"]
[Round "03"]
[TimeControl "180+2"]
[Date "2023.03.28"]
[WhiteClock "0:00:17"]
[BlackClock "0:00:16"]

1. d4 {[%clk 0:03:00]}  Nf6 {[%clk 0:02:59]} 2. Nf3 {[%clk 0:03:01]}  g6 {[%clk 0:02:58]} 3. c4 {[%clk 0:03:02]}  Bg7 {[%clk 0:02:57]} 4. g3 {[%clk 0:03:01]}  O-O {[%clk 0:02:56]} 5. Bg2 {[%clk 0:03:02]}  d5 {[%clk 0:02:56]} 6. O-O {[%clk 0:02:59]}  dxc4 {[%clk 0:02:56]} 7. Na3 {[%clk 0:02:58]}  c3 {[%clk 0:02:57]} 8. bxc3 {[%clk 0:02:58]}  c5 {[%clk 0:02:57]} 9. e3 {[%clk 0:02:50]}  Nc6 {[%clk 0:02:56]} 10. Rb1 {[%clk 0:02:47]}  Nd5 {[%clk 0:02:26]} 11. Bd2 {[%clk 0:02:44]}  Nb6 {[%clk 0:02:23]} 12. Qe2 {[%clk 0:02:20]}  Bf5 {[%clk 0:02:17]} 13. Rb5 {[%clk 0:02:16]}  cxd4 {[%clk 0:02:16]} 14. exd4 {[%clk 0:01:57]}  Rc8 {[%clk 0:02:07]} 15. Re1 {[%clk 0:01:50]}  Re8 {[%clk 0:01:56]} 16. Rc5 {[%clk 0:00:31]}  Be6 {[%clk 0:01:35]} 17. Ng5 {[%clk 0:00:28]}  Bd5 {[%clk 0:01:21]} 18. Bxd5 {[%clk 0:00:17]}  Nxd5 {[%clk 0:01:20]} 19. Nxf7 {[%clk 0:00:18]}  Qd7 {[%clk 0:01:00]} 20. Ng5 {[%clk 0:00:18]}  e5 {[%clk 0:01:00]} 21. Qc4 {[%clk 0:00:18]}  Ne7 {[%clk 0:00:48]} 22. dxe5 {[%clk 0:00:17]}  b6 {[%clk 0:00:48]} 23. Rxc8 {[%clk 0:00:17]}  Rxc8 {[%clk 0:00:49]} 24. Qb3 {[%clk 0:00:17]}  h6 {[%clk 0:00:42]} 25. Ne4 {[%clk 0:00:16]}  Kh7 {[%clk 0:00:38]} 26. c4 {[%clk 0:00:16]}  Nc7 {[%clk 0:00:31]} 27. Nf6+ {[%clk 0:00:16]}  Bxf6 {[%clk 0:00:27]} 28. exf6 {[%clk 0:00:17]}  Nf5 {[%clk 0:00:20]} 29. Bc3 {[%clk 0:00:17]}  Ne6 {[%clk 0:00:19]} 30. Qb5 {[%clk 0:00:17]}  Qxb5 {[%clk 0:00:18]} 31. Nxb5 {[%clk 0:00:18]}  Ned4 {[%clk 0:00:16]} 32. Nxd4 {[%clk 0:00:17]} 1-0


[Site "https://www.chess.com"]

[Event "Titled Tuesday Blitz March 28 Early 2023"]
[White "Drozdowski, Kacper"]
[Black "Alinasab, Mobina"]
[WhiteFideId "1136720"]
[BlackFideId "12528897"]
[WhiteElo "2497"]
[BlackElo "2141"]
[Result "1-0"]
[Round "03"]
[TimeControl "180+2"]
[Date "2023.03.28"]
[WhiteClock "0:00:40"]
[BlackClock "0:00:01"]

1. e4 {[%clk 0:03:00]}  c5 {[%clk 0:02:57]} 2. Nf3 {[%clk 0:03:00]}  e6 {[%clk 0:02:57]} 3. d4 {[%clk 0:03:00]}  cxd4 {[%clk 0:02:58]} 4. Nxd4 {[%clk 0:03:01]}  Nf6 {[%clk 0:02:57]} 5. Nc3 {[%clk 0:03:00]}  Nc6 {[%clk 0:02:57]} 6. Nxc6 {[%clk 0:03:01]}  bxc6 {[%clk 0:02:58]} 7. e5 {[%clk 0:03:01]}  Nd5 {[%clk 0:02:58]} 8. Ne4 {[%clk 0:03:01]}  Qc7 {[%clk 0:02:58]} 9. f4 {[%clk 0:03:01]}  Qb6 {[%clk 0:02:58]} 10. c4 {[%clk 0:03:02]}  Bb4+ {[%clk 0:02:58]} 11. Ke2 {[%clk 0:03:00]}  f5 {[%clk 0:02:50]} 12. Nf2 {[%clk 0:02:55]}  Ba6 {[%clk 0:02:46]} 13. Kf3 {[%clk 0:02:55]}  Ne7 {[%clk 0:02:40]} 14. Be3 {[%clk 0:02:54]}  Bc5 {[%clk 0:02:38]} 15. Bxc5 {[%clk 0:02:54]}  Qxc5 {[%clk 0:02:39]} 16. Qd6 {[%clk 0:02:53]}  Qb6 {[%clk 0:02:34]} 17. b4 {[%clk 0:02:29]}  Nc8 {[%clk 0:02:11]} 18. Qc5 {[%clk 0:02:26]}  Qc7 {[%clk 0:01:55]} 19. Be2 {[%clk 0:02:15]}  d6 {[%clk 0:01:51]} 20. exd6 {[%clk 0:02:13]}  Nxd6 {[%clk 0:01:52]} 21. Rad1 {[%clk 0:02:06]}  Rd8 {[%clk 0:01:51]} 22. Rd4 {[%clk 0:01:51]}  O-O {[%clk 0:01:36]} 23. Rhd1 {[%clk 0:01:49]}  Nb7 {[%clk 0:01:36]} 24. Qe5 {[%clk 0:01:38]}  Qxe5 {[%clk 0:01:25]} 25. fxe5 {[%clk 0:01:37]}  Rxd4 {[%clk 0:01:25]} 26. Rxd4 {[%clk 0:01:38]}  c5 {[%clk 0:01:26]} 27. bxc5 {[%clk 0:01:30]}  Nxc5 {[%clk 0:01:27]} 28. Nd3 {[%clk 0:01:21]}  Rc8 {[%clk 0:00:41]} 29. Kf4 {[%clk 0:01:02]}  h6 {[%clk 0:00:21]} 30. h4 {[%clk 0:01:02]}  Nxd3+ {[%clk 0:00:09]} 31. Bxd3 {[%clk 0:01:02]}  Rc7 {[%clk 0:00:09]} 32. h5 {[%clk 0:00:57]}  Kf7 {[%clk 0:00:08]} 33. Ke3 {[%clk 0:00:56]}  Ke7 {[%clk 0:00:05]} 34. g4 {[%clk 0:00:55]}  fxg4 {[%clk 0:00:05]} 35. Rxg4 {[%clk 0:00:55]}  Kf7 {[%clk 0:00:05]} 36. Kd4 {[%clk 0:00:54]}  Rd7+ {[%clk 0:00:05]} 37. Kc3 {[%clk 0:00:54]}  Rc7 {[%clk 0:00:05]} 38. Rf4+ {[%clk 0:00:54]}  Kg8 {[%clk 0:00:03]} 39. a4 {[%clk 0:00:51]}  Rf7 {[%clk 0:00:01]} 40. Rd4 {[%clk 0:00:44]}  Rc7 {[%clk 0:00:01]} 41. Rd6 {[%clk 0:00:43]}  Bc8 {[%clk 0:00:01]} 42. Kd4 {[%clk 0:00:43]}  Kf8 {[%clk 0:00:01]} 43. c5 {[%clk 0:00:44]}  Ke7 {[%clk 0:00:02]} 44. Bb5 {[%clk 0:00:42]}  Bd7 {[%clk 0:00:01]} 45. Kc4 {[%clk 0:00:40]} 1-0


[Site "https://www.chess.com"]